[Event "December 19 Early 2023"]
[Site "https://www.chess.com"]
[Date "2023.12.19"]
[Round "2"]
[White "Oganisian, Roman"]
[Black "Petrukhina, Olga"]
[Result "0-1"]
[Board "190"]
[TimeControl "180+1"]
[WhiteFideId "4153006"]
[BlackFideId "13703935"]
[WhiteElo "2204"]
[BlackElo "1991"]
[WhiteTeam "RUS"]
[BlackTeam "KAZ"]
[WhiteClock "0:00:04"]
[BlackClock "0:00:06"]

1. e4 {[%clk 0:03:00]}  e6 {[%clk 0:02:59]} 2. Nc3 {[%clk 0:02:59]}  d5 {[%clk 0:02:59]} 3. Nge2 {[%clk 0:03:00]}  Nf6 {[%clk 0:02:54]} 4. e5 {[%clk 0:03:00]}  Nfd7 {[%clk 0:02:53]} 5. f4 {[%clk 0:03:00]}  c5 {[%clk 0:02:52]} 6. g4 {[%clk 0:02:55]}  Qh4+ {[%clk 0:02:24]} 7. Ng3 {[%clk 0:02:55]}  h5 {[%clk 0:02:19]} 8. Nb5 {[%clk 0:02:54]}  Na6 {[%clk 0:02:16]} 9. gxh5 {[%clk 0:02:50]}  Qxf4 {[%clk 0:02:02]} 10. d4 {[%clk 0:02:49]}  Qh4 {[%clk 0:01:51]} 11. c3 {[%clk 0:02:49]}  cxd4 {[%clk 0:01:48]} 12. cxd4 {[%clk 0:02:36]}  Bb4+ {[%clk 0:01:40]} 13. Bd2 {[%clk 0:02:35]}  Be7 {[%clk 0:01:28]} 14. Qf3 {[%clk 0:01:52]}  Ndb8 {[%clk 0:01:11]} 15. Bd3 {[%clk 0:01:30]}  Nc6 {[%clk 0:00:47]} 16. Be3 {[%clk 0:01:12]}  Bd7 {[%clk 0:00:35]} 17. a3 {[%clk 0:01:09]}  O-O-O {[%clk 0:00:26]} 18. Qxf7 {[%clk 0:00:55]}  Rdf8 {[%clk 0:00:18]} 19. Qg6 {[%clk 0:00:54]}  Nc7 {[%clk 0:00:12]} 20. Nxc7 {[%clk 0:00:47]}  Kxc7 {[%clk 0:00:13]} 21. Ke2 {[%clk 0:00:40]}  Nxd4+ {[%clk 0:00:13]} 22. Bxd4 {[%clk 0:00:39]}  Qxd4 {[%clk 0:00:14]} 23. Rac1+ {[%clk 0:00:34]}  Kb8 {[%clk 0:00:14]} 24. Rhf1 {[%clk 0:00:27]}  Bc5 {[%clk 0:00:13]} 25. Qxg7 {[%clk 0:00:17]}  Qe3+ {[%clk 0:00:12]} 26. Kd1 {[%clk 0:00:16]}  Qxd3+ {[%clk 0:00:12]} 27. Ke1 {[%clk 0:00:16]}  Qe3+ {[%clk 0:00:12]} 28. Kd1 {[%clk 0:00:16]}  Ba4+ {[%clk 0:00:12]} 29. Rc2 {[%clk 0:00:17]}  Qd3+ {[%clk 0:00:11]} 30. Ke1 {[%clk 0:00:17]}  Qe3+ {[%clk 0:00:09]} 31. Kd1 {[%clk 0:00:17]}  Qd3+ {[%clk 0:00:08]} 32. Ke1 {[%clk 0:00:17]}  Rxf1+ {[%clk 0:00:09]} 33. Nxf1 {[%clk 0:00:17]}  Rf8 {[%clk 0:00:08]} 34. Qg2 {[%clk 0:00:07]}  Qxc2 {[%clk 0:00:08]} 35. Qxc2 {[%clk 0:00:06]}  Bxc2 {[%clk 0:00:08]} 36. Ng3 {[%clk 0:00:07]}  Bh7 {[%clk 0:00:08]} 37. h6 {[%clk 0:00:07]}  Bd4 {[%clk 0:00:06]} 38. Nh5 {[%clk 0:00:04]}  Bxe5 {[%clk 0:00:06]} 0-1

[Event "December 19 Early 2023"]
[Site "https://www.chess.com"]
[Date "2023.12.19"]
[Round "2"]
[White "San Thit Lwin"]
[Black "Sroczynski, Maciej"]
[Result "1-0"]
[Board "191"]
[TimeControl "180+1"]
[WhiteFideId "13001272"]
[BlackFideId "1121472"]
[WhiteElo "2232"]
[BlackElo "2266"]
[WhiteTeam "MYA"]
[BlackTeam "POL"]
[WhiteClock "0:00:11"]
[BlackClock "0:00:48"]

1. Nf3 {[%clk 0:03:00]}  c5 {[%clk 0:02:57]} 2. c4 {[%clk 0:03:01]}  g6 {[%clk 0:02:55]} 3. Nc3 {[%clk 0:03:02]}  Bg7 {[%clk 0:02:55]} 4. e4 {[%clk 0:02:57]}  Nc6 {[%clk 0:02:54]} 5. Be2 {[%clk 0:02:53]}  e6 {[%clk 0:02:54]} 6. O-O {[%clk 0:02:53]}  Nge7 {[%clk 0:02:53]} 7. d3 {[%clk 0:02:52]}  a6 {[%clk 0:02:53]} 8. Be3 {[%clk 0:02:51]}  Nd4 {[%clk 0:02:53]} 9. Rc1 {[%clk 0:02:42]}  O-O {[%clk 0:02:52]} 10. a3 {[%clk 0:02:39]}  d6 {[%clk 0:02:36]} 11. b4 {[%clk 0:02:38]}  b6 {[%clk 0:02:36]} 12. Re1 {[%clk 0:02:33]}  Bb7 {[%clk 0:02:35]} 13. Bf1 {[%clk 0:02:33]}  Rc8 {[%clk 0:02:26]} 14. bxc5 {[%clk 0:02:25]}  bxc5 {[%clk 0:02:22]} 15. Bxd4 {[%clk 0:02:24]}  cxd4 {[%clk 0:02:22]} 16. Ne2 {[%clk 0:02:24]}  d5 {[%clk 0:02:07]} 17. Nexd4 {[%clk 0:02:15]}  dxe4 {[%clk 0:02:02]} 18. dxe4 {[%clk 0:02:15]}  Qa5 {[%clk 0:02:02]} 19. Qb3 {[%clk 0:02:08]}  Rb8 {[%clk 0:02:00]} 20. Qb4 {[%clk 0:02:03]}  Qc7 {[%clk 0:02:00]} 21. Qa4 {[%clk 0:01:51]}  Rfd8 {[%clk 0:01:58]} 22. Rcd1 {[%clk 0:01:40]}  Nc6 {[%clk 0:01:58]} 23. Nb3 {[%clk 0:01:00]}  Ne5 {[%clk 0:01:53]} 24. Nxe5 {[%clk 0:00:43]}  Bxe5 {[%clk 0:01:54]} 25. h3 {[%clk 0:00:42]}  Bc6 {[%clk 0:01:52]} 26. Rxd8+ {[%clk 0:00:35]}  Rxd8 {[%clk 0:01:48]} 27. Qa5 {[%clk 0:00:35]}  Qb8 {[%clk 0:01:29]} 28. Qxa6 {[%clk 0:00:25]}  Rd6 {[%clk 0:01:26]} 29. c5 {[%clk 0:00:22]}  Rd8 {[%clk 0:01:21]} 30. Qxc6 {[%clk 0:00:21]}  Qxb3 {[%clk 0:01:22]} 31. Qb6 {[%clk 0:00:20]}  Rb8 {[%clk 0:01:20]} 32. Qxb3 {[%clk 0:00:19]}  Rxb3 {[%clk 0:01:21]} 33. Rc1 {[%clk 0:00:20]}  Rxa3 {[%clk 0:01:17]} 34. c6 {[%clk 0:00:19]}  Bc7 {[%clk 0:01:17]} 35. g3 {[%clk 0:00:20]}  Kf8 {[%clk 0:01:16]} 36. Rd1 {[%clk 0:00:19]}  Ra2 {[%clk 0:01:14]} 37. Rd7 {[%clk 0:00:17]}  Ra7 {[%clk 0:01:13]} 38. Bb5 {[%clk 0:00:15]}  h5 {[%clk 0:01:05]} 39. f4 {[%clk 0:00:15]}  Ke8 {[%clk 0:01:02]} 40. Kg2 {[%clk 0:00:15]}  Ra2+ {[%clk 0:00:59]} 41. Kf3 {[%clk 0:00:15]}  Ra7 {[%clk 0:00:59]} 42. g4 {[%clk 0:00:13]}  hxg4+ {[%clk 0:00:59]} 43. hxg4 {[%clk 0:00:14]}  Ra3+ {[%clk 0:01:00]} 44. Ke2 {[%clk 0:00:13]}  Bxf4 {[%clk 0:00:59]} 45. c7 {[%clk 0:00:12]}  Bxc7 {[%clk 0:00:48]} 46. Rd3+ {[%clk 0:00:11]} 1-0

[Event "December 19 Early 2023"]
[Site "https://www.chess.com"]
[Date "2023.12.19"]
[Round "2"]
[White "Sadovsky, Artem"]
[Black "Fernandez Sanchez, Mario Andres"]
[Result "1-0"]
[Board "192"]
[TimeControl "180+1"]
[WhiteFideId "4155840"]
[BlackFideId "6501621"]
[WhiteElo "2314"]
[BlackElo "2050"]
[WhiteTeam "FID"]
[BlackTeam "CRC"]
[WhiteClock "0:00:18"]
[BlackClock "0:00:03"]

1. Nf3 {[%clk 0:03:00]}  d5 {[%clk 0:02:47]} 2. e3 {[%clk 0:02:44]}  c6 {[%clk 0:02:48]} 3. c4 {[%clk 0:02:43]}  Nf6 {[%clk 0:02:49]} 4. b3 {[%clk 0:02:43]}  Bf5 {[%clk 0:02:48]} 5. Bb2 {[%clk 0:02:43]}  e6 {[%clk 0:02:49]} 6. Be2 {[%clk 0:02:44]}  h6 {[%clk 0:02:48]} 7. O-O {[%clk 0:02:44]}  Be7 {[%clk 0:02:48]} 8. d3 {[%clk 0:02:45]}  O-O {[%clk 0:02:47]} 9. Nbd2 {[%clk 0:02:46]}  Bh7 {[%clk 0:02:47]} 10. Qc2 {[%clk 0:02:46]}  Nbd7 {[%clk 0:02:47]} 11. Rad1 {[%clk 0:02:46]}  a5 {[%clk 0:02:46]} 12. a3 {[%clk 0:02:46]}  b5 {[%clk 0:02:39]} 13. Nd4 {[%clk 0:02:42]}  Qb6 {[%clk 0:02:37]} 14. cxb5 {[%clk 0:02:41]}  cxb5 {[%clk 0:02:37]} 15. Qc6 {[%clk 0:02:42]}  Qxc6 {[%clk 0:02:23]} 16. Nxc6 {[%clk 0:02:43]}  Bd6 {[%clk 0:02:23]} 17. Rc1 {[%clk 0:02:35]}  Rfc8 {[%clk 0:02:15]} 18. d4 {[%clk 0:02:12]}  b4 {[%clk 0:02:07]} 19. a4 {[%clk 0:02:01]}  Ne4 {[%clk 0:02:03]} 20. Nxe4 {[%clk 0:02:01]}  Bxe4 {[%clk 0:02:04]} 21. Bb5 {[%clk 0:01:52]}  Nf6 {[%clk 0:02:02]} 22. f3 {[%clk 0:01:51]}  Bg6 {[%clk 0:01:53]} 23. Ne5 {[%clk 0:01:29]}  Bh7 {[%clk 0:01:43]} 24. Rc6 {[%clk 0:01:17]}  Rxc6 {[%clk 0:01:41]} 25. Bxc6 {[%clk 0:01:17]}  Rc8 {[%clk 0:01:37]} 26. Rc1 {[%clk 0:01:18]}  Kf8 {[%clk 0:01:24]} 27. Kf2 {[%clk 0:01:15]}  Ke7 {[%clk 0:00:58]} 28. h4 {[%clk 0:01:15]}  Bxe5 {[%clk 0:00:56]} 29. dxe5 {[%clk 0:01:14]}  Nd7 {[%clk 0:00:56]} 30. Bd4 {[%clk 0:00:40]}  Bd3 {[%clk 0:00:49]} 31. Ke1 {[%clk 0:00:36]}  Ba6 {[%clk 0:00:24]} 32. Kd2 {[%clk 0:00:35]}  Rc7 {[%clk 0:00:15]} 33. g4 {[%clk 0:00:26]}  Nb8 {[%clk 0:00:08]} 34. Bc5+ {[%clk 0:00:17]}  Kd8 {[%clk 0:00:06]} 35. Bb6 {[%clk 0:00:17]}  Nxc6 {[%clk 0:00:06]} 36. Rxc6 {[%clk 0:00:18]}  Bb7 {[%clk 0:00:03]} 37. Rxc7 {[%clk 0:00:18]} 1-0

[Event "December 19 Early 2023"]
[Site "https://www.chess.com"]
[Date "2023.12.19"]
[Round "2"]
[White "Karas, Marek"]
[Black "Obon Temprano, Sergi"]
[Result "1/2-1/2"]
[Board "194"]
[TimeControl "180+1"]
[WhiteFideId "14928558"]
[BlackFideId "2226545"]
[WhiteElo "2218"]
[BlackElo "2135"]
[WhiteTeam "CZE"]
[BlackTeam "ESP"]
[WhiteClock "0:00:03"]
[BlackClock "0:00:05"]

1. d4 {[%clk 0:02:58]}  d5 {[%clk 0:02:59]} 2. Nf3 {[%clk 0:02:59]}  Nf6 {[%clk 0:02:59]} 3. c4 {[%clk 0:02:59]}  c6 {[%clk 0:03:00]} 4. Nc3 {[%clk 0:02:59]}  e6 {[%clk 0:03:00]} 5. g3 {[%clk 0:02:59]}  Nbd7 {[%clk 0:02:58]} 6. Bg2 {[%clk 0:02:59]}  dxc4 {[%clk 0:02:58]} 7. O-O {[%clk 0:02:59]}  Bd6 {[%clk 0:02:55]} 8. e4 {[%clk 0:02:55]}  e5 {[%clk 0:02:55]} 9. Qe2 {[%clk 0:02:49]}  O-O {[%clk 0:02:51]} 10. Qxc4 {[%clk 0:02:43]}  exd4 {[%clk 0:02:46]} 11. Qxd4 {[%clk 0:02:39]}  Bc5 {[%clk 0:02:42]} 12. Qa4 {[%clk 0:02:34]}  Nb6 {[%clk 0:02:41]} 13. Qc2 {[%clk 0:02:32]}  Qe7 {[%clk 0:02:30]} 14. Bg5 {[%clk 0:02:29]}  h6 {[%clk 0:02:29]} 15. Bxf6 {[%clk 0:02:28]}  Qxf6 {[%clk 0:02:29]} 16. e5 {[%clk 0:02:27]}  Qf5 {[%clk 0:02:25]} 17. Qxf5 {[%clk 0:02:23]}  Bxf5 {[%clk 0:02:24]} 18. Nh4 {[%clk 0:02:16]}  Bh7 {[%clk 0:02:21]} 19. Be4 {[%clk 0:02:13]}  Bd4 {[%clk 0:02:15]} 20. Bxh7+ {[%clk 0:02:07]}  Kxh7 {[%clk 0:02:14]} 21. Nf3 {[%clk 0:02:08]}  Bxc3 {[%clk 0:02:12]} 22. bxc3 {[%clk 0:02:07]}  Nd5 {[%clk 0:02:11]} 23. c4 {[%clk 0:02:06]}  Ne7 {[%clk 0:02:03]} 24. Rfd1 {[%clk 0:01:59]}  Rfd8 {[%clk 0:02:03]} 25. Rab1 {[%clk 0:01:59]}  b6 {[%clk 0:02:00]} 26. Kg2 {[%clk 0:01:55]}  c5 {[%clk 0:01:56]} 27. Ne1 {[%clk 0:01:48]}  Nc6 {[%clk 0:01:51]} 28. f4 {[%clk 0:01:45]}  Kg6 {[%clk 0:01:49]} 29. Nc2 {[%clk 0:01:41]}  f6 {[%clk 0:01:30]} 30. exf6 {[%clk 0:01:35]}  Kxf6 {[%clk 0:01:30]} 31. Ne3 {[%clk 0:01:31]}  Nd4 {[%clk 0:01:22]} 32. Nd5+ {[%clk 0:01:27]}  Kf7 {[%clk 0:01:19]} 33. a4 {[%clk 0:01:21]}  Re8 {[%clk 0:01:09]} 34. Rd2 {[%clk 0:01:16]}  Re4 {[%clk 0:00:59]} 35. a5 {[%clk 0:01:11]}  bxa5 {[%clk 0:00:59]} 36. Rb7+ {[%clk 0:01:06]}  Kg6 {[%clk 0:00:54]} 37. Ra2 {[%clk 0:01:01]}  Nf5 {[%clk 0:00:40]} 38. Rxa5 {[%clk 0:00:58]}  Rxc4 {[%clk 0:00:39]} 39. Ra6+ {[%clk 0:00:58]}  Kh7 {[%clk 0:00:36]} 40. Nf6+ {[%clk 0:00:51]}  Kh8 {[%clk 0:00:35]} 41. Raxa7 {[%clk 0:00:47]}  Ra4 {[%clk 0:00:17]} 42. Rxa8+ {[%clk 0:00:38]}  Rxa8 {[%clk 0:00:16]} 43. Ne4 {[%clk 0:00:37]}  Rc8 {[%clk 0:00:15]} 44. Kf3 {[%clk 0:00:30]}  c4 {[%clk 0:00:15]} 45. Nc3 {[%clk 0:00:30]}  Nd4+ {[%clk 0:00:14]} 46. Ke4 {[%clk 0:00:29]}  Ne6 {[%clk 0:00:14]} 47. Kf5 {[%clk 0:00:22]}  Nd4+ {[%clk 0:00:13]} 48. Ke4 {[%clk 0:00:16]}  Ne6 {[%clk 0:00:13]} 49. Re7 {[%clk 0:00:14]}  Nc5+ {[%clk 0:00:12]} 50. Kd5 {[%clk 0:00:11]}  Nb3 {[%clk 0:00:12]} 51. f5 {[%clk 0:00:08]}  Nd2 {[%clk 0:00:12]} 52. Ke6 {[%clk 0:00:05]}  Nf3 {[%clk 0:00:11]} 53. h3 {[%clk 0:00:05]}  Nd4+ {[%clk 0:00:11]} 54. Kf7 {[%clk 0:00:03]}  Nxf5 {[%clk 0:00:11]} 55. Rd7 {[%clk 0:00:03]}  Nxg3 {[%clk 0:00:11]} 56. Kg6 {[%clk 0:00:04]}  Rg8 {[%clk 0:00:07]} 57. Rc7 {[%clk 0:00:03]}  Nf1 {[%clk 0:00:07]} 58. Ne4 {[%clk 0:00:02]}  Ne3 {[%clk 0:00:07]} 59. Nd6 {[%clk 0:00:02]}  Rf8 {[%clk 0:00:06]} 60. Nf7+ {[%clk 0:00:02]}  Rxf7 {[%clk 0:00:06]} 61. Rxf7 {[%clk 0:00:01]}  Kg8 {[%clk 0:00:06]} 62. Rc7 {[%clk 0:00:01]}  Kf8 {[%clk 0:00:06]} 63. Rc8+ {[%clk 0:00:02]}  Ke7 {[%clk 0:00:06]} 64. Kxg7 {[%clk 0:00:02]}  h5 {[%clk 0:00:05]} 65. Kg6 {[%clk 0:00:02]}  h4 {[%clk 0:00:05]} 66. Kg5 {[%clk 0:00:03]}  Kd6 {[%clk 0:00:05]} 67. Kf4 {[%clk 0:00:02]}  Nd5+ {[%clk 0:00:04]} 68. Kg4 {[%clk 0:00:02]}  c3 {[%clk 0:00:05]} 69. Kxh4 {[%clk 0:00:02]}  Ke5 {[%clk 0:00:05]} 70. Kg5 {[%clk 0:00:03]}  Kd4 {[%clk 0:00:05]} 71. h4 {[%clk 0:00:03]}  Ne7 {[%clk 0:00:05]} 72. Rd8+ {[%clk 0:00:03]}  Kc4 {[%clk 0:00:04]} 73. Rd7 {[%clk 0:00:03]}  Nc6 {[%clk 0:00:04]} 74. Rd1 {[%clk 0:00:03]}  Ne5 {[%clk 0:00:05]} 75. h5 {[%clk 0:00:03]}  c2 {[%clk 0:00:04]} 76. Rh1 {[%clk 0:00:02]}  Kd3 {[%clk 0:00:04]} 77. Kf5 {[%clk 0:00:02]}  Nf7 {[%clk 0:00:04]} 78. Kf6 {[%clk 0:00:02]}  Nh6 {[%clk 0:00:04]} 79. Kg5 {[%clk 0:00:02]}  Nf7+ {[%clk 0:00:04]} 80. Kg6 {[%clk 0:00:03]}  Ne5+ {[%clk 0:00:05]} 81. Kf6 {[%clk 0:00:03]}  Ng4+ {[%clk 0:00:04]} 82. Kg5 {[%clk 0:00:03]}  Ne5 {[%clk 0:00:05]} 83. Kf4 {[%clk 0:00:02]}  Nf7 {[%clk 0:00:04]} 84. Rh3+ {[%clk 0:00:01]}  Kd2 {[%clk 0:00:04]} 85. Rh2+ {[%clk 0:00:02]}  Kd1 {[%clk 0:00:04]} 86. Rh1+ {[%clk 0:00:02]}  Kd2 {[%clk 0:00:04]} 87. Kf5 {[%clk 0:00:02]}  c1=Q {[%clk 0:00:03]} 88. Rxc1 {[%clk 0:00:03]}  Kxc1 {[%clk 0:00:04]} 89. Kg6 {[%clk 0:00:03]}  Ne5+ {[%clk 0:00:04]} 90. Kf5 {[%clk 0:00:02]}  Nf7 {[%clk 0:00:04]} 91. Kf6 {[%clk 0:00:02]}  Nh6 {[%clk 0:00:04]} 92. Kg5 {[%clk 0:00:02]}  Nf7+ {[%clk 0:00:04]} 93. Kg6 {[%clk 0:00:03]}  Ne5+ {[%clk 0:00:05]} 94. Kf5 {[%clk 0:00:03]}  Nf7 {[%clk 0:00:05]} 1/2-1/2

[Event "December 19 Early 2023"]
[Site "https://www.chess.com"]
[Date "2023.12.19"]
[Round "2"]
[White "Vincenti, Leonardo"]
[Black "Kochiev, Ivan"]
[Result "1/2-1/2"]
[Board "195"]
[TimeControl "180+1"]
[WhiteFideId "28550820"]
[BlackFideId "2917890"]
[WhiteElo "2054"]
[BlackElo "2285"]
[WhiteTeam "ITA"]
[BlackTeam "BUL"]
[WhiteClock "0:00:31"]
[BlackClock "0:00:12"]

1. e4 {[%clk 0:03:00]}  e5 {[%clk 0:02:57]} 2. Nf3 {[%clk 0:03:00]}  Nf6 {[%clk 0:02:57]} 3. Nc3 {[%clk 0:02:58]}  Nc6 {[%clk 0:02:57]} 4. d4 {[%clk 0:02:58]}  exd4 {[%clk 0:02:57]} 5. Nxd4 {[%clk 0:02:59]}  Bb4 {[%clk 0:02:57]} 6. Nxc6 {[%clk 0:02:58]}  bxc6 {[%clk 0:02:58]} 7. Bd3 {[%clk 0:02:58]}  d5 {[%clk 0:02:58]} 8. exd5 {[%clk 0:02:59]}  cxd5 {[%clk 0:02:59]} 9. O-O {[%clk 0:02:59]}  O-O {[%clk 0:02:57]} 10. Bg5 {[%clk 0:02:58]}  c6 {[%clk 0:02:52]} 11. Qf3 {[%clk 0:02:58]}  Rb8 {[%clk 0:02:41]} 12. Ne2 {[%clk 0:02:54]}  Re8 {[%clk 0:02:33]} 13. Nd4 {[%clk 0:02:50]}  Bd7 {[%clk 0:02:20]} 14. Bxf6 {[%clk 0:02:48]}  Qxf6 {[%clk 0:02:16]} 15. Qxf6 {[%clk 0:02:48]}  gxf6 {[%clk 0:02:17]} 16. c3 {[%clk 0:02:35]}  Bc5 {[%clk 0:01:55]} 17. b3 {[%clk 0:02:30]}  Bd6 {[%clk 0:01:27]} 18. Nf5 {[%clk 0:02:23]}  Be5 {[%clk 0:01:12]} 19. Rac1 {[%clk 0:02:22]}  c5 {[%clk 0:01:07]} 20. Nh6+ {[%clk 0:02:10]}  Kg7 {[%clk 0:00:54]} 21. Nf5+ {[%clk 0:02:10]}  Bxf5 {[%clk 0:00:48]} 22. Bxf5 {[%clk 0:02:09]}  c4 {[%clk 0:00:49]} 23. bxc4 {[%clk 0:02:07]}  dxc4 {[%clk 0:00:48]} 24. f4 {[%clk 0:01:59]}  Bd6 {[%clk 0:00:44]} 25. Rf3 {[%clk 0:01:58]}  Re2 {[%clk 0:00:33]} 26. Rg3+ {[%clk 0:01:54]}  Kh8 {[%clk 0:00:20]} 27. Rh3 {[%clk 0:01:42]}  Rbb2 {[%clk 0:00:14]} 28. Rd1 {[%clk 0:01:24]}  Bc5+ {[%clk 0:00:09]} 29. Kh1 {[%clk 0:01:23]}  Kg7 {[%clk 0:00:05]} 30. Rxh7+ {[%clk 0:01:20]}  Kf8 {[%clk 0:00:05]} 31. Rh8+ {[%clk 0:01:14]}  Kg7 {[%clk 0:00:04]} 32. Rh7+ {[%clk 0:01:12]}  Kg8 {[%clk 0:00:03]} 33. Rh3 {[%clk 0:00:49]}  Rxg2 {[%clk 0:00:02]} 34. Rg3+ {[%clk 0:00:35]}  Rxg3 {[%clk 0:00:03]} 35. hxg3 {[%clk 0:00:36]}  Rxa2 {[%clk 0:00:02]} 36. Rd8+ {[%clk 0:00:32]}  Kg7 {[%clk 0:00:02]} 37. Rc8 {[%clk 0:00:32]}  Bf2 {[%clk 0:00:01]} 38. g4 {[%clk 0:00:23]}  Bg3 {[%clk 0:00:01]} 39. Rxc4 {[%clk 0:00:23]}  Rf2 {[%clk 0:00:02]} 40. Ra4 {[%clk 0:00:20]}  Rxf4 {[%clk 0:00:01]} 41. Rxa7 {[%clk 0:00:19]}  Rc4 {[%clk 0:00:02]} 42. Ra3 {[%clk 0:00:19]}  Be5 {[%clk 0:00:01]} 43. Rb3 {[%clk 0:00:19]}  Rxc3 {[%clk 0:00:01]} 44. Rxc3 {[%clk 0:00:19]}  Bxc3 {[%clk 0:00:02]} 45. Kg2 {[%clk 0:00:20]}  Kh6 {[%clk 0:00:03]} 46. Kf3 {[%clk 0:00:21]}  Kg5 {[%clk 0:00:04]} 47. Ke4 {[%clk 0:00:22]}  Be5 {[%clk 0:00:05]} 48. Kd5 {[%clk 0:00:22]}  Bf4 {[%clk 0:00:05]} 49. Kc6 {[%clk 0:00:23]}  Be5 {[%clk 0:00:06]} 50. Kd7 {[%clk 0:00:24]}  Bf4 {[%clk 0:00:07]} 51. Ke7 {[%clk 0:00:24]}  Be5 {[%clk 0:00:07]} 52. Kxf7 {[%clk 0:00:25]}  Bf4 {[%clk 0:00:08]} 53. Ke7 {[%clk 0:00:26]}  Be5 {[%clk 0:00:09]} 54. Ke6 {[%clk 0:00:27]}  Bf4 {[%clk 0:00:10]} 55. Kd5 {[%clk 0:00:28]}  Be5 {[%clk 0:00:10]} 56. Ke6 {[%clk 0:00:29]}  Bf4 {[%clk 0:00:11]} 57. Kd5 {[%clk 0:00:30]}  Be5 {[%clk 0:00:12]} 58. Ke6 {[%clk 0:00:31]} 1/2-1/2

[Event "December 19 Early 2023"]
[Site "https://www.chess.com"]
[Date "2023.12.19"]
[Round "2"]
[White "Hnydiuk, Aleksander"]
[Black "Fernandez Hernandez, Gerardo"]
[Result "1-0"]
[Board "198"]
[TimeControl "180+1"]
[WhiteFideId "1109057"]
[BlackFideId "2207400"]
[WhiteElo "2374"]
[BlackElo "2261"]
[WhiteTeam "POL"]
[BlackTeam "ESP"]
[WhiteClock "0:00:15"]
[BlackClock "0:00:00"]

1. d4 {[%clk 0:03:00]}  Nf6 {[%clk 0:02:59]} 2. Nf3 {[%clk 0:02:59]}  g6 {[%clk 0:02:59]} 3. c4 {[%clk 0:02:58]}  Bg7 {[%clk 0:02:59]} 4. Nc3 {[%clk 0:02:55]}  O-O {[%clk 0:02:59]} 5. e4 {[%clk 0:02:55]}  d6 {[%clk 0:02:59]} 6. Be2 {[%clk 0:02:54]}  Na6 {[%clk 0:02:55]} 7. O-O {[%clk 0:02:52]}  e5 {[%clk 0:02:55]} 8. Be3 {[%clk 0:02:52]}  Ng4 {[%clk 0:02:54]} 9. Bg5 {[%clk 0:02:50]}  Qe8 {[%clk 0:02:54]} 10. d5 {[%clk 0:01:47]}  h6 {[%clk 0:02:45]} 11. Bd2 {[%clk 0:01:43]}  f5 {[%clk 0:02:32]} 12. Ne1 {[%clk 0:01:43]}  Nf6 {[%clk 0:02:28]} 13. f3 {[%clk 0:01:25]}  f4 {[%clk 0:02:11]} 14. Nd3 {[%clk 0:01:25]}  g5 {[%clk 0:02:05]} 15. g4 {[%clk 0:01:14]}  h5 {[%clk 0:01:37]} 16. h3 {[%clk 0:01:13]}  Kf7 {[%clk 0:01:32]} 17. Kg2 {[%clk 0:01:10]}  Rh8 {[%clk 0:01:31]} 18. Rh1 {[%clk 0:01:09]}  Bd7 {[%clk 0:01:22]} 19. b4 {[%clk 0:01:06]}  Qe7 {[%clk 0:01:12]} 20. Qb3 {[%clk 0:00:51]}  Rh7 {[%clk 0:00:49]} 21. c5 {[%clk 0:00:49]}  Rah8 {[%clk 0:00:43]} 22. b5 {[%clk 0:00:36]}  Nxc5 {[%clk 0:00:23]} 23. Nxc5 {[%clk 0:00:36]}  dxc5 {[%clk 0:00:23]} 24. d6+ {[%clk 0:00:37]}  Be6 {[%clk 0:00:12]} 25. dxe7 {[%clk 0:00:37]}  Bxb3 {[%clk 0:00:12]} 26. axb3 {[%clk 0:00:37]}  hxg4 {[%clk 0:00:11]} 27. hxg4 {[%clk 0:00:33]}  Rxh1 {[%clk 0:00:10]} 28. Rxh1 {[%clk 0:00:34]}  Rxh1 {[%clk 0:00:10]} 29. Kxh1 {[%clk 0:00:35]}  Kxe7 {[%clk 0:00:11]} 30. Bc4 {[%clk 0:00:32]}  b6 {[%clk 0:00:10]} 31. Kg2 {[%clk 0:00:29]}  Ne8 {[%clk 0:00:09]} 32. Kf2 {[%clk 0:00:27]}  Nd6 {[%clk 0:00:09]} 33. Ke2 {[%clk 0:00:26]}  Bf6 {[%clk 0:00:09]} 34. Nd5+ {[%clk 0:00:25]}  Kf7 {[%clk 0:00:06]} 35. Nxc7+ {[%clk 0:00:25]}  Kg7 {[%clk 0:00:06]} 36. Bc3 {[%clk 0:00:20]}  Kg6 {[%clk 0:00:02]} 37. Kd3 {[%clk 0:00:17]}  Bg7 {[%clk 0:00:02]} 38. Ne6 {[%clk 0:00:15]}  Kf6 {[%clk 0:00:02]} 39. Nxg7 {[%clk 0:00:14]}  Kxg7 {[%clk 0:00:03]} 40. Bxe5+ {[%clk 0:00:14]}  Kg6 {[%clk 0:00:00]} 41. Bxd6 {[%clk 0:00:15]} 1-0

[Event "December 19 Early 2023"]
[Site "https://www.chess.com"]
[Date "2023.12.19"]
[Round "2"]
[White "Semenova, Alina"]
[Black "Grochal, Joey"]
[Result "0-1"]
[Board "203"]
[TimeControl "180+1"]
[WhiteFideId "24113875"]
[BlackFideId "1019945"]
[WhiteElo "1827"]
[BlackElo "2231"]
[WhiteTeam "RUS"]
[BlackTeam "NED"]
[WhiteClock "0:00:00"]
[BlackClock "0:01:10"]

1. e4 {[%clk 0:03:00]}  e5 {[%clk 0:02:58]} 2. Nf3 {[%clk 0:02:59]}  Nc6 {[%clk 0:02:57]} 3. d4 {[%clk 0:02:59]}  exd4 {[%clk 0:02:57]} 4. Nxd4 {[%clk 0:03:00]}  Bc5 {[%clk 0:02:57]} 5. Be3 {[%clk 0:02:59]}  Qf6 {[%clk 0:02:56]} 6. c3 {[%clk 0:02:59]}  Nge7 {[%clk 0:02:54]} 7. Nc2 {[%clk 0:02:49]}  Bb6 {[%clk 0:02:46]} 8. Nd2 {[%clk 0:02:45]}  d5 {[%clk 0:02:43]} 9. Bb5 {[%clk 0:02:38]}  O-O {[%clk 0:02:41]} 10. O-O {[%clk 0:02:37]}  d4 {[%clk 0:02:17]} 11. Nxd4 {[%clk 0:01:48]}  Nxd4 {[%clk 0:02:16]} 12. cxd4 {[%clk 0:01:48]}  Bxd4 {[%clk 0:02:16]} 13. Bxd4 {[%clk 0:01:48]}  Qxd4 {[%clk 0:02:17]} 14. Qc2 {[%clk 0:01:36]}  c6 {[%clk 0:02:16]} 15. Be2 {[%clk 0:01:30]}  Be6 {[%clk 0:02:15]} 16. Rad1 {[%clk 0:01:17]}  Rfd8 {[%clk 0:02:12]} 17. Nf3 {[%clk 0:01:10]}  Qb4 {[%clk 0:02:07]} 18. b3 {[%clk 0:00:43]}  a5 {[%clk 0:02:03]} 19. Ng5 {[%clk 0:00:36]}  Bd7 {[%clk 0:01:44]} 20. Bc4 {[%clk 0:00:31]}  Be8 {[%clk 0:01:43]} 21. e5 {[%clk 0:00:27]}  Ng6 {[%clk 0:01:44]} 22. e6 {[%clk 0:00:20]}  fxe6 {[%clk 0:01:40]} 23. Nxe6 {[%clk 0:00:21]}  Rxd1 {[%clk 0:01:36]} 24. Rxd1 {[%clk 0:00:22]}  Bf7 {[%clk 0:01:30]} 25. a3 {[%clk 0:00:21]}  Qe7 {[%clk 0:01:29]} 26. Nd4 {[%clk 0:00:14]}  Rd8 {[%clk 0:01:27]} 27. Nf3 {[%clk 0:00:10]}  Rxd1+ {[%clk 0:01:24]} 28. Qxd1 {[%clk 0:00:11]}  Bxc4 {[%clk 0:01:25]} 29. bxc4 {[%clk 0:00:10]}  h6 {[%clk 0:01:25]} 30. a4 {[%clk 0:00:10]}  Nf4 {[%clk 0:01:24]} 31. g3 {[%clk 0:00:09]}  Qe2 {[%clk 0:01:14]} 32. Qb3 {[%clk 0:00:03]}  Nd3 {[%clk 0:01:11]} 33. Kg2 {[%clk 0:00:02]}  Qxf2+ {[%clk 0:01:10]} 34. Kh3 {[%clk 0:00:02]}  Qxf3 {[%clk 0:01:11]} 35. c5+ {[%clk 0:00:00]}  Kh7 {[%clk 0:01:10]} 0-1